{"text_format":"1","workbook":"xlsx","n_sheets":1,"sheets":["ورقة1"],"not_rendered":{"charts":0,"images":0,"macros":1,"external_links":0,"defined_names":2,"comments":0,"pivot_tables":0},"unopened":[],"bounds":{"document_bytes":16777216,"sheet_cells":100000,"rows_first":2000,"rows_last":500,"rows_between":2000,"halvings":0,"cell_chars":16384,"cell_head_chars":4096},"cells_cut":0,"cells_raw":0,"read":"whole","date_system":"1900"}

{"sheet":"ورقة1","index":0,"n_rows":41,"n_cols":38,"rows_kept":41,"cut":false,"hidden":false,"merged":[]}
["م","جلوس","سرى","اسم التلمبذ","التربية الدينية","اللغة العربية","الرياضيات","اللغة الإنجليزية","العلوم","التربية الفنية","الدرسات الاجتماعية","المجموع","النتيجة",null,null,null,null,null,null,null,null,null,null,null,null,null,null,"م","جلوس","سرى","اسم التلمبذ","التربية الدينية","اللغة العربية","الرياضيات","اللغة الإنجليزية","العلوم","التربية الفنية","الدرسات الاجتماعية"]
[1,1,11,"ماهر",47,55,47,55,49,55,55,{"$f":"SUM(E2:K2)","v":363},{"$f":"IF(COUNTIF(E2:K2,\">=غ\")=1,\"غ\",IF(COUNTIF(E2:K2,\">=غ\")=2,\"غ\",IF(COUNTIF(E2:K2,\">=غ\")=3,\"غ\",IF(COUNTIF(E2:K2,\"<5\")>=3,\"راسب\",IF(AND(L2>=35,K2>=5,J2>=5,I2>=5,H2>=5,G2>=5,F2>=5,E2>=5),\"ناجح\",\"مكمل\")))))","v":"ناجح"},null,"ذكر",null,null,null,null,{"$f":"COUNTIF(E2:K2,\"غ\")","v":0},null,null,null,null,{"$f":"COUNTIF(E2:K2,\"<5\")","v":0},null,null,1,1,11,"ماهر"]
[2,2,12,"وليد",100,100,100,100,100,100,100,{"$f":"SUM(E3:K3)","v":700},{"$f":"IF(COUNTIF(E3:K3,\">=غ\")=1,\"غ\",IF(COUNTIF(E3:K3,\">=غ\")=2,\"غ\",IF(COUNTIF(E3:K3,\">=غ\")=3,\"غ\",IF(COUNTIF(E3:K3,\"<5\")>=3,\"راسب\",IF(AND(L3>=35,K3>=5,J3>=5,I3>=5,H3>=5,G3>=5,F3>=5,E3>=5),\"ناجح\",\"مكمل\")))))","v":"ناجح"},null,"ذكر",null,null,null,null,{"$f":"COUNTIF(E3:K3,\"غ\")","v":0},null,null,null,null,{"$f":"COUNTIF(E3:K3,\"<5\")","v":0},null,null,2,3,13,"نمير"]
[3,3,13,"نمير",45,50,51,50,55,54,52,357,"ناجح",null,"ذكر",null,null,null,null,{"$f":"COUNTIF(E4:K4,\"غ\")","v":0},null,null,null,null,{"$f":"COUNTIF(E4:K4,\"<5\")","v":0},null,null,3,5,15,"واثق"]
[4,4,14,"وباسم",64,75,76,57,89,57,56,474,"ناجح",null,"ذكر",null,null,null,null,{"$f":"COUNTIF(E5:K5,\"غ\")","v":0},null,null,null,null,{"$f":"COUNTIF(E5:K5,\"<5\")","v":0}]
[5,5,15,"واثق",50,49,55,48,55,50,48,355,"ناجح",null,"ذكر",null,null,null,null,{"$f":"COUNTIF(E6:K6,\"غ\")","v":0},null,null,null,null,{"$f":"COUNTIF(E6:K6,\"<5\")","v":0}]
[6,6,16,"علي",100,100,100,100,100,100,100,700,"ناجح",null,"ذكر",null,null,null,null,{"$f":"COUNTIF(E7:K7,\"غ\")","v":0},null,null,null,null,{"$f":"COUNTIF(E7:K7,\"<5\")","v":0}]
[7,7,17,"احمد",100,100,100,100,100,100,100,700,"ناجح",null,"ذكر",null,null,null,null,{"$f":"COUNTIF(E8:K8,\"غ\")","v":0},null,null,null,null,{"$f":"COUNTIF(E8:K8,\"<5\")","v":0}]
[null,null,null,null,null,null,null,null,null,null,null,0,"مكمل",null,"ذكر",null,null,null,null,{"$f":"COUNTIF(E9:K9,\"غ\")","v":0},null,null,null,null,{"$f":"COUNTIF(E9:K9,\"<5\")","v":0}]
[null,null,null,null,null,null,null,null,null,null,null,0,"مكمل",null,"ذكر",null,null,null,null,{"$f":"COUNTIF(E10:K10,\"غ\")","v":0},null,null,null,null,{"$f":"COUNTIF(E10:K10,\"<5\")","v":0}]
[null,null,null,null,null,null,null,null,null,null,null,0,"مكمل",null,"ذكر",null,null,null,null,{"$f":"COUNTIF(E11:K11,\"غ\")","v":0},null,null,null,null,{"$f":"COUNTIF(E11:K11,\"<5\")","v":0}]
[null,null,null,null,null,null,null,null,null,null,null,0,"مكمل",null,"ذكر",null,null,null,null,{"$f":"COUNTIF(E12:K12,\"غ\")","v":0},null,null,null,null,{"$f":"COUNTIF(E12:K12,\"<5\")","v":0}]
[null,null,null,null,null,null,null,null,null,null,null,0,"مكمل",null,"ذكر",null,null,null,null,{"$f":"COUNTIF(E13:K13,\"غ\")","v":0},null,null,null,null,{"$f":"COUNTIF(E13:K13,\"<5\")","v":0}]
[null,null,null,null,null,null,null,null,null,null,null,0,"مكمل",null,"ذكر",null,null,null,null,{"$f":"COUNTIF(E14:K14,\"غ\")","v":0},null,null,null,null,{"$f":"COUNTIF(E14:K14,\"<5\")","v":0},null,null,null,null,null,null,"نموذج الحل"]
[null,null,null,null,null,null,null,null,null,null,null,0,"مكمل",null,"ذكر",null,null,null,null,{"$f":"COUNTIF(E15:K15,\"غ\")","v":0},null,null,null,null,{"$f":"COUNTIF(E15:K15,\"<5\")","v":0}]
[null,null,null,null,null,null,null,null,null,null,null,0,"مكمل",null,"ذكر",null,null,null,null,{"$f":"COUNTIF(E16:K16,\"غ\")","v":0},null,null,null,null,{"$f":"COUNTIF(E16:K16,\"<5\")","v":0}]
[null,null,null,null,null,null,null,null,null,null,null,0,"مكمل",null,"ذكر",null,null,null,null,{"$f":"COUNTIF(E17:K17,\"غ\")","v":0},null,null,null,null,{"$f":"COUNTIF(E17:K17,\"<5\")","v":0}]
[null,null,null,null,null,null,null,null,null,null,null,0,"مكمل",null,"ذكر",null,null,null,null,{"$f":"COUNTIF(E18:K18,\"غ\")","v":0},null,null,null,null,{"$f":"COUNTIF(E18:K18,\"<5\")","v":0}]
[null,null,null,null,null,null,null,null,null,null,null,0,"مكمل",null,"ذكر",null,null,null,null,{"$f":"COUNTIF(E19:K19,\"غ\")","v":0},null,null,null,null,{"$f":"COUNTIF(E19:K19,\"<5\")","v":0}]
[null,null,null,null,null,null,null,null,null,null,null,0,"مكمل",null,"ذكر",null,null,null,null,{"$f":"COUNTIF(E20:K20,\"غ\")","v":0},null,null,null,null,{"$f":"COUNTIF(E20:K20,\"<5\")","v":0}]
[null,null,null,null,null,null,null,null,null,null,null,0,"مكمل",null,"ذكر",null,null,null,null,{"$f":"COUNTIF(E21:K21,\"غ\")","v":0},null,null,null,null,{"$f":"COUNTIF(E21:K21,\"<5\")","v":0}]
[null,null,null,null,null,null,null,null,null,null,null,0,"مكمل",null,"ذكر",null,null,null,null,{"$f":"COUNTIF(E22:K22,\"غ\")","v":0},null,null,null,null,{"$f":"COUNTIF(E22:K22,\"<5\")","v":0}]
[null,null,null,null,null,null,null,null,null,null,null,0,"مكمل",null,"ذكر",null,null,null,null,{"$f":"COUNTIF(E23:K23,\"غ\")","v":0},null,null,null,null,{"$f":"COUNTIF(E23:K23,\"<5\")","v":0}]
[null,null,null,null,null,null,null,null,null,null,null,0,"مكمل",null,"ذكر",null,null,null,null,{"$f":"COUNTIF(E24:K24,\"غ\")","v":0},null,null,null,null,{"$f":"COUNTIF(E24:K24,\"<5\")","v":0}]
[null,null,null,null,null,null,null,null,null,null,null,0,"مكمل",null,"ذكر",null,null,null,null,{"$f":"COUNTIF(E25:K25,\"غ\")","v":0},null,null,null,null,{"$f":"COUNTIF(E25:K25,\"<5\")","v":0}]
[null,null,null,null,null,null,null,null,null,null,null,0,"مكمل",null,"ذكر",null,null,null,null,{"$f":"COUNTIF(E26:K26,\"غ\")","v":0},null,null,null,null,{"$f":"COUNTIF(E26:K26,\"<5\")","v":0}]
[null,null,null,null,null,null,null,null,null,null,null,0,"مكمل",null,"ذكر",null,null,null,null,{"$f":"COUNTIF(E27:K27,\"غ\")","v":0},null,null,null,null,{"$f":"COUNTIF(E27:K27,\"<5\")","v":0}]
[null,null,null,null,null,null,null,null,null,null,null,0,"مكمل",null,"ذكر",null,null,null,null,{"$f":"COUNTIF(E28:K28,\"غ\")","v":0},null,null,null,null,{"$f":"COUNTIF(E28:K28,\"<5\")","v":0}]
[null,null,null,null,null,null,null,null,null,null,null,0,"مكمل",null,"ذكر",null,null,null,null,{"$f":"COUNTIF(E29:K29,\"غ\")","v":0},null,null,null,null,{"$f":"COUNTIF(E29:K29,\"<5\")","v":0}]
[null,null,null,null,null,null,null,null,null,null,null,0,"مكمل",null,"ذكر",null,null,null,null,{"$f":"COUNTIF(E30:K30,\"غ\")","v":0},null,null,null,null,{"$f":"COUNTIF(E30:K30,\"<5\")","v":0}]
[null,null,null,null,null,null,null,null,null,null,null,0,"مكمل",null,"ذكر",null,null,null,null,{"$f":"COUNTIF(E31:K31,\"غ\")","v":0},null,null,null,null,{"$f":"COUNTIF(E31:K31,\"<5\")","v":0}]
[null,null,null,null,null,null,null,null,null,null,null,0,"مكمل",null,"ذكر",null,null,null,null,{"$f":"COUNTIF(E32:K32,\"غ\")","v":0},null,null,null,null,{"$f":"COUNTIF(E32:K32,\"<5\")","v":0}]
[null,null,null,null,null,null,null,null,null,null,null,0,"مكمل",null,"ذكر",null,null,null,null,{"$f":"COUNTIF(E33:K33,\"غ\")","v":0},null,null,null,null,{"$f":"COUNTIF(E33:K33,\"<5\")","v":0}]
[null,null,null,null,null,null,null,null,null,null,null,0,"مكمل",null,"ذكر",null,null,null,null,{"$f":"COUNTIF(E34:K34,\"غ\")","v":0},null,null,null,null,{"$f":"COUNTIF(E34:K34,\"<5\")","v":0}]
[null,null,null,null,null,null,null,null,null,null,null,0,"مكمل",null,"ذكر",null,null,null,null,{"$f":"COUNTIF(E35:K35,\"غ\")","v":0},null,null,null,null,{"$f":"COUNTIF(E35:K35,\"<5\")","v":0}]
[null,null,null,null,null,null,null,null,null,null,null,0,"مكمل",null,"ذكر",null,null,null,null,{"$f":"COUNTIF(E36:K36,\"غ\")","v":0},null,null,null,null,{"$f":"COUNTIF(E36:K36,\"<5\")","v":0}]
[null,null,null,null,null,null,null,null,null,null,null,0,"مكمل",null,"ذكر",null,null,null,null,{"$f":"COUNTIF(E37:K37,\"غ\")","v":0},null,null,null,null,{"$f":"COUNTIF(E37:K37,\"<5\")","v":0}]
[null,null,null,null,null,null,null,null,null,null,null,0,"مكمل",null,"ذكر",null,null,null,null,{"$f":"COUNTIF(E38:K38,\"غ\")","v":0},null,null,null,null,{"$f":"COUNTIF(E38:K38,\"<5\")","v":0}]
[null,null,null,null,null,null,null,null,null,null,null,0,"مكمل",null,"ذكر",null,null,null,null,{"$f":"COUNTIF(E39:K39,\"غ\")","v":0},null,null,null,null,{"$f":"COUNTIF(E39:K39,\"<5\")","v":0}]
[null,null,null,null,null,null,null,null,null,null,null,0,"مكمل",null,"ذكر",null,null,null,null,{"$f":"COUNTIF(E40:K40,\"غ\")","v":0},null,null,null,null,{"$f":"COUNTIF(E40:K40,\"<5\")","v":0}]
[null,null,null,null,null,null,null,null,null,null,null,0,"مكمل",null,"ذكر",null,null,null,null,{"$f":"COUNTIF(E41:K41,\"غ\")","v":0},null,null,null,null,{"$f":"COUNTIF(E41:K41,\"<5\")","v":0}]